[Event "Goteborg Open 2024"]
[Site "Goteborgs Schackcentrum, Vegatan 20, Gothenburg, Sweden"]
[Date "2024.08.02"]
[Round "3.12"]
[White "Harila, Per"]
[Black "Thern, Alfred"]
[Result "1-0"]
[TimeControl "15 minutes + 5 seconds per move from move one (Round 1 - 4) / 90 minutes + 30 seconds per move from move one (Round 5 - 8)"]
[WhiteFideId "1707248"]
[BlackFideId "1775227"]
[WhiteElo "1947"]
[BlackElo "1729"]

1. d4 {[%clk 00:15:08]} {[%emt 00:00:03]} f5 {[%clk 00:15:06]} {[%emt
00:00:04]} 2. Nf3 {[%clk 00:15:09]} {[%emt 00:00:03]} Nf6 {[%clk 00:15:08]}
{[%emt 00:00:04]} 3. g3 {[%clk 00:15:13]} {[%emt 00:00:01]} g6 {[%clk
00:15:12]} {[%emt 00:00:02]} 4. Bg2 {[%clk 00:15:16]} {[%emt 00:00:01]} Bg7
{[%clk 00:15:15]} {[%emt 00:00:03]} 5. O-O {[%clk 00:15:18]} {[%emt 00:00:02]}
d6 {[%clk 00:15:18]} {[%emt 00:00:02]} 6. c3 {[%clk 00:15:22]} {[%emt
00:00:01]} O-O {[%clk 00:15:16]} {[%emt 00:00:07]} 7. Qb3+ {[%clk 00:15:25]}
{[%emt 00:00:02]} Kh8 {[%clk 00:15:00]} {[%emt 00:00:21]} 8. Ng5 {[%clk
00:15:25]} {[%emt 00:00:04]} d5 {[%clk 00:14:28]} {[%emt 00:00:38]} 9. Nd2
{[%clk 00:15:24]} {[%emt 00:00:06]} h6 {[%clk 00:14:18]} {[%emt 00:00:15]} 10.
Nh3 {[%clk 00:15:26]} {[%emt 00:00:03]} g5 {[%clk 00:13:27]} {[%emt 00:00:56]}
11. f4 {[%clk 00:14:18]} {[%emt 00:01:14]} g4 {[%clk 00:13:12]} {[%emt
00:00:19]} 12. Nf2 {[%clk 00:14:20]} {[%emt 00:00:02]} c6 {[%clk 00:13:13]}
{[%emt 00:00:05]} 13. Nd3 {[%clk 00:14:16]} {[%emt 00:00:09]} Ne4 {[%clk
00:12:50]} {[%emt 00:00:28]} 14. Ne5 {[%clk 00:14:09]} {[%emt 00:00:11]} Bxe5
{[%clk 00:12:40]} {[%emt 00:00:16]} 15. fxe5 {[%clk 00:13:46]} {[%emt
00:00:28]} Ng5 {[%clk 00:11:55]} {[%emt 00:00:50]} 16. Qc2 {[%clk 00:13:17]}
{[%emt 00:00:34]} e6 {[%clk 00:11:38]} {[%emt 00:00:21]} 17. Nb3 {[%clk
00:13:02]} {[%emt 00:00:20]} b6 {[%clk 00:11:10]} {[%emt 00:00:34]} 18. Bf4
{[%clk 00:12:38]} {[%emt 00:00:29]} Bd7 {[%clk 00:11:01]} {[%emt 00:00:15]} 19.
Nc1 {[%clk 00:12:30]} {[%emt 00:00:12]} Be8 {[%clk 00:10:45]} {[%emt 00:00:21]}
20. Nd3 {[%clk 00:12:29]} {[%emt 00:00:06]} Nd7 {[%clk 00:10:03]} {[%emt
00:00:48]} 21. Be3 {[%clk 00:12:25]} {[%emt 00:00:07]} Rc8 {[%clk 00:08:53]}
{[%emt 00:01:15]} 22. Qd2 {[%clk 00:12:12]} {[%emt 00:00:19]} Qe7 {[%clk
00:08:28]} {[%emt 00:00:30]} 23. Rac1 {[%clk 00:12:04]} {[%emt 00:00:13]} c5
{[%clk 00:08:14]} {[%emt 00:00:19]} 24. Nf4 {[%clk 00:11:40]} {[%emt 00:00:29]}
Rg8 {[%clk 00:07:26]} {[%emt 00:00:53]} 25. b3 {[%clk 00:11:11]} {[%emt
00:00:34]} Bf7 {[%clk 00:06:56]} {[%emt 00:00:34]} 26. Bf2 {[%clk 00:10:45]}
{[%emt 00:00:30]} Rg7 {[%clk 00:06:39]} {[%emt 00:00:24]} 27. c4 {[%clk
00:10:32]} {[%emt 00:00:18]} cxd4 {[%clk 00:05:49]} {[%emt 00:00:56]} 28. Bxd4
{[%clk 00:10:20]} {[%emt 00:00:15]} Ne4 {[%clk 00:04:59]} {[%emt 00:00:56]} 29.
Bxe4 {[%clk 00:10:15]} {[%emt 00:00:10]} dxe4 {[%clk 00:04:59]} {[%emt
00:00:05]} 30. e3 {[%clk 00:10:05]} {[%emt 00:00:14]} Rh7 {[%clk 00:04:55]}
{[%emt 00:00:10]} 31. Rc2 {[%clk 00:09:19]} {[%emt 00:00:52]} h5 {[%clk
00:04:14]} {[%emt 00:00:46]} 32. Rfc1 {[%clk 00:09:22]} h4 {[%clk 00:04:17]}
{[%emt 00:00:02]} 33. Qf2 {[%clk 00:08:17]} {[%emt 00:01:10]} hxg3 {[%clk
00:04:17]} {[%emt 00:00:05]} 34. Qxg3 {[%clk 00:08:18]} {[%emt 00:00:03]} Qh4
{[%clk 00:04:11]} {[%emt 00:00:11]} 35. Qxh4 {[%clk 00:07:59]} {[%emt
00:00:24]} Rxh4 {[%clk 00:04:14]} {[%emt 00:00:03]} 36. c5 {[%clk 00:08:01]}
{[%emt 00:00:03]} bxc5 {[%clk 00:04:04]} {[%emt 00:00:16]} 37. Bb2 {[%clk
00:07:36]} {[%emt 00:00:28]} Kg7 {[%clk 00:03:35]} {[%emt 00:00:35]} 38. Rd1
{[%clk 00:07:28]} {[%emt 00:00:13]} Nb6 {[%clk 00:03:20]} {[%emt 00:00:20]} 39.
Rd6 {[%clk 00:06:47]} {[%emt 00:00:46]} Rh6 {[%clk 00:03:14]} {[%emt 00:00:11]}
40. Ba3 {[%clk 00:06:25]} {[%emt 00:00:27]} c4 {[%clk 00:02:57]} {[%emt
00:00:22]} 41. bxc4 {[%clk 00:06:05]} {[%emt 00:00:25]} Rxc4 {[%clk 00:02:47]}
{[%emt 00:00:14]} 42. Rcd2 {[%clk 00:05:19]} {[%emt 00:00:51]} Rc3 {[%clk
00:02:29]} {[%emt 00:00:23]} 43. Bb4 {[%clk 00:05:05]} {[%emt 00:00:19]} Rxe3
{[%clk 00:02:23]} {[%emt 00:00:12]} 44. Rc2 {[%clk 00:05:00]} {[%emt 00:00:11]}
Rf3 {[%clk 00:02:05]} {[%emt 00:00:22]} 45. Ne2 {[%clk 00:04:36]} {[%emt
00:00:29]} f4 {[%clk 00:01:52]} {[%emt 00:00:18]} 46. Rd8 {[%clk 00:04:30]}
{[%emt 00:00:10]} Rd3 {[%clk 00:01:39]} {[%emt 00:00:18]} 47. Bf8+ {[%clk
00:04:12]} {[%emt 00:00:24]} Kg6 {[%clk 00:01:40]} {[%emt 00:00:04]} 48. Nxf4+
{[%clk 00:04:06]} {[%emt 00:00:11]} Kg5 {[%clk 00:01:23]} {[%emt 00:00:22]} 49.
Nxd3 {[%clk 00:04:05]} {[%emt 00:00:06]} exd3 {[%clk 00:01:21]} {[%emt
00:00:08]} 50. Rxd3 {[%clk 00:04:01]} {[%emt 00:00:08]} Rh8 {[%clk 00:01:08]}
{[%emt 00:00:18]} 51. Bd6 {[%clk 00:04:04]} {[%emt 00:00:02]} Nd5 {[%clk
00:01:09]} {[%emt 00:00:04]} 52. Rf2 {[%clk 00:03:25]} {[%emt 00:00:42]} Bg6
{[%clk 00:01:07]} {[%emt 00:00:08]} 53. Rd1 {[%clk 00:03:07]} {[%emt 00:00:22]}
Nf4 {[%clk 00:01:05]} {[%emt 00:00:07]} 54. Be7+ {[%clk 00:03:00]} {[%emt
00:00:12]} Kf5 {[%clk 00:00:58]} {[%emt 00:00:12]} 55. Rdf1 {[%clk 00:03:00]}
{[%emt 00:00:04]} Kxe5 {[%clk 00:01:01]} {[%emt 00:00:03]} 56. Rxf4 {[%clk
00:03:03]} {[%emt 00:00:02]} Bf5 {[%clk 00:01:02]} {[%emt 00:00:05]} 57. Ba3
{[%clk 00:02:28]} {[%emt 00:00:39]} Kd5 {[%clk 00:00:59]} {[%emt 00:00:09]} 58.
Rd1+ {[%clk 00:02:18]} {[%emt 00:00:14]} Kc6 {[%clk 00:00:59]} {[%emt
00:00:06]} 59. Rc4+ {[%clk 00:02:10]} {[%emt 00:00:11]} Kb5 {[%clk 00:00:56]}
{[%emt 00:00:09]} 60. Rb4+ {[%clk 00:02:11]} {[%emt 00:00:03]} Ka5 {[%emt
00:00:05]} 61. Rd7 {[%clk 00:02:02]} {[%emt 00:00:08]} a6 {[%clk 00:00:53]}
{[%emt 00:00:14]} 62. Rb2 {[%clk 00:01:42]} {[%emt 00:00:25]} Rc8 {[%clk
00:00:39]} {[%emt 00:00:20]} 63. Re2 {[%clk 00:01:22]} {[%emt 00:00:25]} Kb5
{[%clk 00:00:36]} {[%emt 00:00:09]} 64. Red2 {[%clk 00:01:03]} {[%emt
00:00:23]} Rc3 {[%clk 00:00:36]} {[%emt 00:00:05]} 65. Be7 {[%clk 00:01:04]}
{[%emt 00:00:04]} Rc1+ {[%clk 00:00:38]} {[%emt 00:00:03]} 66. Kf2 {[%clk
00:01:07]} {[%emt 00:00:01]} Be4 {[%clk 00:00:36]} {[%emt 00:00:07]} 67. Bh4
{[%clk 00:01:02]} {[%emt 00:00:10]} Rh1 {[%clk 00:00:28]} {[%emt 00:00:12]} 68.
Bg3 {[%clk 00:01:04]} {[%emt 00:00:04]} Rc1 {[%clk 00:00:24]} {[%emt 00:00:09]}
69. Ke3 {[%clk 00:01:00]} {[%emt 00:00:09]} Bf5 {[%clk 00:00:26]} {[%emt
00:00:03]} 70. Rb2+ {[%clk 00:00:55]} {[%emt 00:00:09]} Ka5 {[%clk 00:00:27]}
{[%emt 00:00:05]} 71. Rd4 {[%clk 00:00:55]} {[%emt 00:00:04]} Rc3+ {[%clk
00:00:29]} {[%emt 00:00:04]} 72. Kf4 {[%clk 00:00:56]} {[%emt 00:00:03]} Rc1
{[%clk 00:00:29]} {[%emt 00:00:05]} 73. Ke5 {[%clk 00:00:42]} {[%emt 00:00:20]}
Rc5 {[%clk 00:00:30]} {[%emt 00:00:05]} 74. Kd6 {[%clk 00:00:44]} {[%emt
00:00:02]} Rc1 {[%clk 00:00:27]} {[%emt 00:00:08]} 75. Ke7 {[%clk 00:00:35]}
{[%emt 00:00:14]} Rc5 {[%clk 00:00:15]} {[%emt 00:00:17]} 76. Be1+ {[%clk
00:00:29]} {[%emt 00:00:10]} 1-0

[Event "Goteborg Open 2024"]
[Site "Goteborgs Schackcentrum, Vegatan 20, Gothenburg, Sweden"]
[Date "2024.08.02"]
[Round "3.13"]
[White "Bergdahl, Martin"]
[Black "Johansson, Stefan"]
[Result "1/2-1/2"]
[TimeControl "15 minutes + 5 seconds per move from move one (Round 1 - 4) / 90 minutes + 30 seconds per move from move one (Round 5 - 8)"]
[WhiteFideId "1782231"]
[BlackFideId "1732242"]
[WhiteElo "1711"]
[BlackElo "1933"]

1. e4 {[%clk 00:15:09]} {[%emt 00:00:01]} c5 {[%clk 00:15:07]} {[%emt
00:00:04]} 2. Nf3 {[%clk 00:15:12]} {[%emt 00:00:01]} Nc6 {[%clk 00:15:06]}
{[%emt 00:00:06]} 3. d4 {[%clk 00:15:16]} cxd4 {[%clk 00:15:07]} {[%emt
00:00:05]} 4. Nxd4 {[%clk 00:15:19]} {[%emt 00:00:03]} g6 {[%clk 00:15:10]}
{[%emt 00:00:01]} 5. Nc3 {[%clk 00:15:15]} {[%emt 00:00:09]} Bg7 {[%clk
00:15:12]} {[%emt 00:00:03]} 6. Be3 {[%clk 00:15:08]} {[%emt 00:00:12]} Nf6
{[%clk 00:15:13]} {[%emt 00:00:04]} 7. Qd2 {[%clk 00:14:56]} {[%emt 00:00:18]}
O-O {[%clk 00:15:06]} {[%emt 00:00:12]} 8. O-O-O {[%clk 00:14:50]} {[%emt
00:00:11]} d6 {[%clk 00:13:05]} {[%emt 00:02:06]} 9. Nxc6 {[%clk 00:14:24]}
{[%emt 00:00:30]} bxc6 {[%clk 00:13:05]} {[%emt 00:00:06]} 10. e5 {[%clk
00:14:13]} {[%emt 00:00:15]} Ne8 {[%clk 00:12:34]} {[%emt 00:00:37]} 11. exd6
{[%clk 00:13:40]} {[%emt 00:00:38]} Nxd6 {[%clk 00:10:10]} {[%emt 00:02:28]} 12.
Bc5 {[%clk 00:12:36]} {[%emt 00:01:09]} Be6 {[%clk 00:08:59]} {[%emt 00:01:15]}
13. Bxd6 {[%clk 00:12:24]} {[%emt 00:00:17]} exd6 {[%clk 00:09:03]} {[%emt
00:00:02]} 14. Qxd6 {[%clk 00:11:44]} {[%emt 00:00:45]} Qa5 {[%clk 00:08:58]}
{[%emt 00:00:08]} 15. Qg3 {[%clk 00:09:46]} {[%emt 00:02:05]} Rab8 {[%clk
00:08:24]} {[%emt 00:00:39]} 16. a3 {[%clk 00:08:15]} {[%emt 00:01:36]} Rxb2
{[%clk 00:05:41]} {[%emt 00:02:48]} 17. Kxb2 {[%clk 00:07:46]} {[%emt
00:00:34]} Bxc3+ {[%clk 00:05:20]} {[%emt 00:00:27]} 18. Qxc3 {[%clk 00:07:01]}
{[%emt 00:00:49]} Rb8+ {[%clk 00:05:22]} {[%emt 00:00:04]} 19. Qb4 {[%clk
00:07:01]} {[%emt 00:00:03]} Rxb4+ {[%clk 00:05:25]} {[%emt 00:00:03]} 20. axb4
{[%clk 00:07:04]} {[%emt 00:00:03]} Qxb4+ {[%clk 00:05:28]} {[%emt 00:00:02]}
21. Kc1 {[%clk 00:07:00]} {[%emt 00:00:09]} a5 {[%clk 00:04:51]} {[%emt
00:00:42]} 22. Bd3 {[%clk 00:06:20]} {[%emt 00:00:44]} a4 {[%clk 00:04:49]}
{[%emt 00:00:08]} 23. Rde1 {[%clk 00:05:44]} {[%emt 00:00:40]} a3 {[%clk
00:04:43]} {[%emt 00:00:12]} 24. Re4 {[%clk 00:05:48]} Qb2+ {[%clk 00:04:17]}
{[%emt 00:00:27]} 25. Kd2 {[%clk 00:05:43]} {[%emt 00:00:14]} a2 {[%clk
00:03:58]} {[%emt 00:00:24]} 26. Ra4 {[%clk 00:05:33]} {[%emt 00:00:13]} Qb1
{[%clk 00:03:33]} {[%emt 00:00:31]} 27. Rc1 {[%clk 00:05:06]} {[%emt 00:00:32]}
Qb6 {[%clk 00:02:31]} {[%emt 00:01:07]} 28. Ke2 {[%clk 00:04:56]} {[%emt
00:00:15]} c5 {[%clk 00:02:29]} {[%emt 00:00:09]} 29. Ra6 {[%clk 00:04:42]}
{[%emt 00:00:18]} Qb4 {[%clk 00:02:21]} {[%emt 00:00:13]} 30. c4 {[%clk
00:03:58]} {[%emt 00:00:49]} Qb2+ {[%clk 00:02:17]} {[%emt 00:00:08]} 31. Kd1
{[%clk 00:04:01]} {[%emt 00:00:02]} Qd4 {[%clk 00:02:18]} {[%emt 00:00:04]} 32.
Ke2 {[%clk 00:03:55]} {[%emt 00:00:11]} Qg4+ {[%clk 00:02:04]} {[%emt
00:00:19]} 33. Kf1 {[%clk 00:03:49]} {[%emt 00:00:11]} Qd4 {[%clk 00:02:04]}
{[%emt 00:00:05]} 34. Ke2 {[%clk 00:03:53]} {[%emt 00:00:02]} Bg4+ {[%clk
00:02:07]} {[%emt 00:00:02]} 35. f3 {[%clk 00:03:54]} {[%emt 00:00:03]} Be6
{[%clk 00:02:11]} {[%emt 00:00:01]} 36. Rxa2 {[%clk 00:03:48]} {[%emt
00:00:12]} Kg7 {[%clk 00:02:05]} {[%emt 00:00:11]} 37. Rd2 {[%clk 00:03:27]}
{[%emt 00:00:25]} Qf4 {[%clk 00:02:08]} {[%emt 00:00:02]} 38. g3 {[%clk
00:03:08]} {[%emt 00:00:25]} Qe5+ {[%clk 00:02:12]} {[%emt 00:00:02]} 39. Be4
{[%clk 00:02:49]} {[%emt 00:00:23]} h5 {[%clk 00:02:12]} {[%emt 00:00:05]}
1/2-1/2

[Event "Goteborg Open 2024"]
[Site "Goteborgs Schackcentrum, Vegatan 20, Gothenburg, Sweden"]
[Date "2024.08.02"]
[Round "3.14"]
[White "Fransson, Lennart"]
[Black "Madevan Vaishnavi, Yaashvan"]
[Result "1/2-1/2"]
[TimeControl "15 minutes + 5 seconds per move from move one (Round 1 - 4) / 90 minutes + 30 seconds per move from move one (Round 5 - 8)"]
[WhiteFideId "1706756"]
[BlackFideId "1772180"]
[WhiteElo "1926"]
[BlackElo "1684"]

1. c4 {[%clk 00:15:07]} {[%emt 00:00:01]} e5 {[%clk 00:15:04]} {[%emt
00:00:08]} 2. g3 {[%clk 00:15:08]} {[%emt 00:00:02]} Nf6 {[%clk 00:15:05]}
{[%emt 00:00:05]} 3. Bg2 {[%clk 00:15:10]} {[%emt 00:00:02]} Bc5 {[%clk
00:15:07]} {[%emt 00:00:04]} 4. Nc3 {[%clk 00:15:11]} {[%emt 00:00:04]} c6
{[%clk 00:14:51]} {[%emt 00:00:22]} 5. Nf3 {[%clk 00:14:59]} {[%emt 00:00:15]}
e4 {[%clk 00:14:41]} {[%emt 00:00:16]} 6. Ng5 {[%clk 00:13:01]} {[%emt
00:02:02]} d5 {[%clk 00:14:35]} {[%emt 00:00:11]} 7. d3 {[%clk 00:12:40]}
{[%emt 00:00:27]} exd3 {[%clk 00:12:58]} {[%emt 00:01:42]} 8. Qxd3 {[%clk
00:12:40]} {[%emt 00:00:04]} d4 {[%clk 00:12:50]} {[%emt 00:00:14]} 9. Nce4
{[%clk 00:11:40]} {[%emt 00:01:04]} Bb6 {[%clk 00:12:01]} {[%emt 00:00:56]} 10.
O-O {[%clk 00:11:07]} {[%emt 00:00:38]} h6 {[%clk 00:11:14]} {[%emt 00:00:52]}
11. Nxf6+ {[%clk 00:10:38]} {[%emt 00:00:34]} Qxf6 {[%clk 00:11:03]} {[%emt
00:00:16]} 12. Ne4 {[%clk 00:10:31]} {[%emt 00:00:11]} Qd8 {[%clk 00:10:26]}
{[%emt 00:00:43]} 13. c5 {[%clk 00:10:01]} {[%emt 00:00:35]} Bc7 {[%clk
00:10:25]} {[%emt 00:00:06]} 14. Rd1 {[%clk 00:09:32]} {[%emt 00:00:33]} O-O
{[%clk 00:09:55]} {[%emt 00:00:35]} 15. Qxd4 {[%clk 00:09:29]} {[%emt
00:00:08]} Qxd4 {[%clk 00:09:51]} {[%emt 00:00:10]} 16. Rxd4 {[%clk 00:09:31]}
{[%emt 00:00:02]} Be5 {[%clk 00:09:53]} {[%emt 00:00:03]} 17. Rd1 {[%clk
00:09:24]} {[%emt 00:00:12]} Be6 {[%clk 00:09:41]} {[%emt 00:00:18]} 18. f4
{[%clk 00:08:57]} {[%emt 00:00:31]} Bc7 {[%clk 00:09:35]} {[%emt 00:00:12]} 19.
Nc3 {[%clk 00:08:48]} {[%emt 00:00:13]} f5 {[%clk 00:09:09]} {[%emt 00:00:32]}
20. Be3 {[%clk 00:08:22]} {[%emt 00:00:30]} Nd7 {[%clk 00:08:58]} {[%emt
00:00:17]} 21. b4 {[%clk 00:08:05]} {[%emt 00:00:21]} a6 {[%clk 00:08:15]}
{[%emt 00:00:49]} 22. a4 {[%clk 00:07:41]} {[%emt 00:00:28]} Nf6 {[%clk
00:08:04]} {[%emt 00:00:16]} 23. h3 {[%clk 00:07:35]} {[%emt 00:00:11]} Rfe8
{[%clk 00:07:38]} {[%emt 00:00:32]} 24. Bd4 {[%clk 00:07:01]} {[%emt 00:00:38]}
Kf7 {[%clk 00:06:31]} {[%emt 00:01:13]} 25. b5 {[%clk 00:06:36]} {[%emt
00:00:30]} axb5 {[%clk 00:05:15]} {[%emt 00:01:21]} 26. axb5 {[%clk 00:06:38]}
{[%emt 00:00:03]} Rxa1 {[%clk 00:05:10]} {[%emt 00:00:10]} 27. Rxa1 {[%clk
00:06:41]} {[%emt 00:00:02]} cxb5 {[%emt 00:00:06]} 28. Nxb5 {[%clk 00:06:22]}
{[%emt 00:00:23]} Bb8 {[%clk 00:04:47]} {[%emt 00:00:27]} 29. Bxf6 {[%clk
00:05:57]} {[%emt 00:00:30]} Kxf6 {[%clk 00:04:35]} {[%emt 00:00:18]} 30. Bxb7
{[%clk 00:05:29]} {[%emt 00:00:33]} Bc4 {[%clk 00:04:26]} {[%emt 00:00:13]} 31.
Nd4 {[%clk 00:03:51]} {[%emt 00:01:43]} Bxe2 {[%clk 00:03:56]} {[%emt
00:00:35]} 32. Ra8 {[%clk 00:02:20]} {[%emt 00:01:36]} Bc4 {[%clk 00:02:41]}
{[%emt 00:01:20]} 33. Nc6 {[%clk 00:02:02]} {[%emt 00:00:23]} Re1+ {[%clk
00:02:38]} {[%emt 00:00:08]} 34. Kf2 {[%clk 00:02:05]} {[%emt 00:00:02]} Re2+
{[%clk 00:02:27]} {[%emt 00:00:17]} 35. Kf3 {[%clk 00:02:08]} Bc7 {[%clk
00:02:28]} {[%emt 00:00:05]} 36. Ne5 {[%clk 00:01:37]} {[%emt 00:00:35]} Bxe5
37. fxe5+ {[%clk 00:01:40]} Rxe5 {[%clk 00:01:59]} {[%emt 00:00:03]} 38. c6
{[%clk 00:01:18]} {[%emt 00:00:27]} Bd5+ {[%clk 00:01:31]} {[%emt 00:00:34]} 39.
Kf2 {[%clk 00:01:07]} {[%emt 00:00:15]} Re7 {[%clk 00:01:30]} {[%emt 00:00:06]}
40. Ra5 {[%clk 00:01:00]} {[%emt 00:00:11]} Be4 {[%clk 00:01:11]} {[%emt
00:00:25]} 41. Rc5 {[%clk 00:00:59]} {[%emt 00:00:04]} Rc7 {[%clk 00:01:10]}
{[%emt 00:00:06]} 42. Ke3 {[%clk 00:00:57]} {[%emt 00:00:07]} Ke6 {[%clk
00:00:47]} {[%emt 00:00:29]} 43. Kd4 {[%clk 00:01:00]} {[%emt 00:00:01]} g6
{[%clk 00:00:32]} {[%emt 00:00:22]} 44. g4 {[%clk 00:01:02]} {[%emt 00:00:02]}
Kd6 {[%clk 00:00:31]} {[%emt 00:00:05]} 45. gxf5 {[%clk 00:00:56]} {[%emt
00:00:11]} Bxf5 {[%clk 00:00:18]} {[%emt 00:00:18]} 46. h4 {[%clk 00:01:00]}
{[%emt 00:00:01]} Ke6 {[%clk 00:00:08]} {[%emt 00:00:16]} 47. Re5+ {[%clk
00:01:03]} {[%emt 00:00:02]} Kd6 {[%clk 00:00:12]} {[%emt 00:00:01]} 48. Re1
{[%clk 00:01:02]} {[%emt 00:00:06]} Bc8 {[%clk 00:00:15]} {[%emt 00:00:03]} 49.
Rb1 {[%clk 00:00:45]} {[%emt 00:00:21]} Bf5 {[%clk 00:00:10]} {[%emt 00:00:10]}
50. Rf1 {[%clk 00:00:41]} {[%emt 00:00:08]} h5 {[%clk 00:00:09]} {[%emt
00:00:07]} 51. Rf2 {[%clk 00:00:34]} {[%emt 00:00:11]} Bc8 {[%clk 00:00:06]}
{[%emt 00:00:09]} 52. Rf6+ {[%clk 00:00:34]} {[%emt 00:00:03]} Ke7 {[%clk
00:00:07]} {[%emt 00:00:05]} 53. Rxg6 {[%clk 00:00:33]} {[%emt 00:00:06]} Kf7
{[%clk 00:00:10]} {[%emt 00:00:03]} 54. Rh6 {[%clk 00:00:33]} {[%emt 00:00:03]}
Kg7 {[%clk 00:00:13]} {[%emt 00:00:04]} 55. Rxh5 {[%clk 00:00:21]} {[%emt
00:00:17]} Bxb7 {[%clk 00:00:16]} {[%emt 00:00:02]} 56. cxb7 {[%clk 00:00:24]}
{[%emt 00:00:02]} Rxb7 {[%clk 00:00:20]} {[%emt 00:00:01]} 57. Ra5 {[%clk
00:00:26]} {[%emt 00:00:03]} Rb4+ {[%clk 00:00:22]} {[%emt 00:00:03]} 58. Ke5
{[%clk 00:00:27]} {[%emt 00:00:05]} Rxh4 {[%clk 00:00:22]} 1/2-1/2

[Event "Goteborg Open 2024"]
[Site "Goteborgs Schackcentrum, Vegatan 20, Gothenburg, Sweden"]
[Date "2024.08.02"]
[Round "3.15"]
[White "Garby, Jacob"]
[Black "Hammar, Arvid"]
[Result "0-1"]
[TimeControl "15 minutes + 5 seconds per move from move one (Round 1 - 4) / 90 minutes + 30 seconds per move from move one (Round 5 - 8)"]
[WhiteFideId "1786520"]
[BlackFideId "1735977"]
[WhiteElo "1895"]
[BlackElo "1653"]

1. d4 {[%clk 00:15:09]} Nf6 {[%clk 00:15:06]} {[%emt 00:00:05]} 2. c4 {[%clk
00:14:58]} {[%emt 00:00:16]} d5 {[%clk 00:15:08]} {[%emt 00:00:03]} 3. Nf3
{[%clk 00:15:00]} {[%emt 00:00:04]} c5 {[%clk 00:15:02]} {[%emt 00:00:11]} 4.
dxc5 {[%clk 00:14:51]} {[%emt 00:00:13]} e5 {[%clk 00:14:53]} {[%emt 00:00:13]}
5. Nc3 {[%clk 00:14:07]} {[%emt 00:00:50]} e4 {[%clk 00:14:43]} {[%emt
00:00:15]} 6. Ne5 {[%clk 00:12:43]} {[%emt 00:01:29]} Bxc5 {[%clk 00:14:35]}
{[%emt 00:00:12]} 7. Nxd5 {[%clk 00:12:20]} {[%emt 00:00:28]} Qd6 {[%clk
00:14:07]} {[%emt 00:00:32]} 8. Bf4 {[%clk 00:11:52]} {[%emt 00:00:35]} Nxd5
{[%clk 00:13:24]} {[%emt 00:00:47]} 9. Qxd5 {[%clk 00:10:43]} {[%emt 00:01:14]}
Bb4+ {[%clk 00:13:01]} {[%emt 00:00:29]} 10. Bd2 {[%clk 00:09:38]} {[%emt
00:01:10]} Bxd2+ {[%clk 00:12:53]} {[%emt 00:00:12]} 11. Kxd2 {[%clk 00:09:32]}
{[%emt 00:00:11]} Qb4+ {[%clk 00:12:44]} {[%emt 00:00:15]} 12. Kc2 {[%clk
00:08:41]} {[%emt 00:00:55]} O-O {[%clk 00:12:03]} {[%emt 00:00:46]} 13. Rd1
{[%clk 00:07:57]} {[%emt 00:00:50]} Bf5 {[%clk 00:11:35]} {[%emt 00:00:32]} 14.
g4 {[%clk 00:07:38]} {[%emt 00:00:24]} Be6 {[%clk 00:10:53]} {[%emt 00:00:47]}
15. Qxe4 {[%clk 00:07:18]} {[%emt 00:00:26]} Nc6 {[%clk 00:10:35]} {[%emt
00:00:23]} 16. Nxc6 {[%clk 00:06:27]} {[%emt 00:00:57]} bxc6 {[%clk 00:10:26]}
{[%emt 00:00:13]} 17. e3 {[%clk 00:06:01]} {[%emt 00:00:31]} Bd5 {[%clk
00:09:02]} {[%emt 00:01:29]} 18. Qf5 {[%clk 00:04:51]} {[%emt 00:01:14]} Bxh1
{[%clk 00:08:50]} {[%emt 00:00:18]} 19. Bd3 {[%clk 00:04:53]} {[%emt 00:00:03]}
g6 {[%clk 00:07:36]} {[%emt 00:01:19]} 20. Qf4 {[%clk 00:04:05]} {[%emt
00:00:52]} Qa4+ {[%clk 00:06:53]} {[%emt 00:00:48]} 21. b3 {[%clk 00:03:01]}
{[%emt 00:01:09]} Qxa2+ {[%clk 00:06:47]} {[%emt 00:00:11]} 22. Kc3 {[%clk
00:03:00]} {[%emt 00:00:07]} Qa5+ {[%clk 00:06:38]} {[%emt 00:00:12]} 23. Kb2
{[%clk 00:02:56]} {[%emt 00:00:11]} Rab8 {[%clk 00:05:51]} {[%emt 00:00:52]} 24.
Rxh1 {[%clk 00:02:23]} {[%emt 00:00:37]} Rfd8 {[%clk 00:04:58]} {[%emt
00:00:58]} 25. Ra1 {[%clk 00:02:03]} {[%emt 00:00:25]} Rxb3+ {[%clk 00:03:52]}
{[%emt 00:01:12]} 26. Kxb3 {[%clk 00:01:44]} {[%emt 00:00:23]} Rxd3+ {[%clk
00:03:26]} {[%emt 00:00:31]} 27. Kc2 {[%clk 00:00:49]} {[%emt 00:01:00]} Qc3+
{[%clk 00:03:17]} {[%emt 00:00:14]} 28. Kb1 {[%clk 00:00:52]} {[%emt 00:00:03]}
Rd1+ {[%clk 00:03:14]} {[%emt 00:00:06]} 29. Ka2 {[%clk 00:00:54]} {[%emt
00:00:05]} Rxa1# {[%emt 00:00:03]} 0-1